bitfinex/quotes_ETHUSD_20251024
["timestamp","ask_amount","ask_price","bid_price","bid_amount"]
[1761289053451,0.78404002,3982.2,3982.0,3.162]
[1761289053827,0.4575,3982.1,3982.0,3.162]
[1761289056442,0.5831,3982.1,3982.0,3.162]
[1761289060291,0.5831,3982.1,3982.0,3.161]
[1761289065455,0.1256,3982.1,3982.0,3.161]
[1761289065674,0.5831,3982.1,3982.0,3.161]
[1761289066251,0.1256,3982.1,3982.0,3.161]
[1761289066781,0.5831,3982.1,3982.0,3.161]
[1761289068156,0.5841,3982.1,3982.0,3.161]
[1761289073481,0.1266,3982.1,3982.0,3.161]
[1761289073692,0.5841,3982.1,3982.0,3.161]
[1761289074288,3.09539547,3982.1,3981.6,0.50688]
[1761289074464,0.4575,3982.0,3981.7,3.16]
[1761289074664,0.4575,3982.0,3981.4,3.01855657]
[1761289074975,0.1256,3981.5,3981.4,3.01855657]
[1761289075291,0.1256,3981.5,3981.4,6.17855657]
[1761289076686,0.1256,3981.5,3981.4,6.61135657]
[1761289077093,0.29778602,3982.5,3981.4,6.61135657]
[1761289077094,0.90350431,3983.1,3981.5,2.644]
[1761289077296,0.67738596,3983.9,3983.4,0.50688]
[1761289077595,3.15930729,3985.3,3983.3,4.57256125]
[1761289077596,0.7531075,3985.8,3984.5,0.50688]
[1761289077779,0.6823,3985.4,3984.8,3.48532599]
[1761289078095,0.6823,3985.4,3984.9,3.20309473]
[1761289078280,0.2203,3985.4,3984.9,3.178]
[1761289078596,0.462,3985.3,3985.0,0.75297897]
[1761289078925,2.97122289,3985.3,3985.1,3.179]
[1761289079076,0.31915229,3985.2,3985.1,3.179]
[1761289079277,0.4741,3985.2,3985.1,3.179]
[1761289079682,0.4741,3985.2,3985.1,3.181]
[1761289081279,2.98338435,3985.2,3985.1,3.181]
[1761289084495,2.50936979,3985.1,3984.2,0.50688]
[1761289084683,2.98346979,3985.1,3984.4,0.50688]
[1761289084884,0.4741,3985.0,3984.4,0.50688]
[1761289086091,0.4741,3985.0,3984.3,3.179]
[1761289086092,0.2239,3984.9,3983.4,1.95463041]
[1761289086294,1.02302059,3985.8,3985.7,0.2143]
[1761289086480,0.2203,3987.0,3985.7,3.178]
[1761289086690,0.2203,3987.0,3985.8,0.50688]
[1761289086691,0.4724,3986.9,3985.8,0.50688]
[1761289086880,2.50843409,3986.6,3985.8,0.50688]
[1761289087083,2.50834732,3986.7,3985.8,0.50688]
[1761289087279,2.50834732,3986.7,3985.7,3.178]
[1761289087280,0.2507,3986.7,3986.0,0.50688]
[1761289087502,0.1256,3986.1,3986.0,0.50688]
[1761289089904,0.1256,3986.1,3986.0,0.93668]
[1761289091373,0.1523,3988.0,3986.0,4.83597399]
[1761289091578,2.50796278,3987.3,3986.1,0.2143]
[1761289091795,0.2211,3987.4,3986.2,0.50688]
[1761289091796,2.50802568,3987.2,3986.2,0.50688]
[1761289091993,0.2526,3987.3,3985.7,0.2143]
[1761289092206,0.2526,3987.3,3985.9,0.50688]
[1761289092413,2.50903898,3985.6,3984.6,0.4298]
[1761289092707,2.50892395,3985.8,3984.9,3.6368]
[1761289092875,0.6245,3986.0,3985.0,0.50688]
[1761289093078,2.50902575,3985.7,3985.0,0.50688]
[1761289093487,2.50904087,3985.6,3984.9,3.207]
[1761289093931,2.50904087,3985.6,3985.0,0.50688]
[1761289094206,2.50904087,3985.6,3984.9,3.207]
[1761289094391,2.50904087,3985.6,3985.0,0.50688]
[1761289095008,2.50885786,3985.9,3985.0,0.50688]
[1761289095009,2.50884367,3985.9,3985.0,0.50688]
[1761289095186,2.50897912,3985.7,3985.2,0.50688]
[1761289095712,2.50897912,3985.7,3985.1,0.2143]
[1761289096409,2.50904006,3985.6,3985.2,0.50688]
[1761289096609,2.50910216,3985.5,3985.2,0.50688]
[1761289096786,2.50903871,3985.6,3985.0,0.50688]
[1761289096992,2.50895596,3985.8,3985.1,0.50688]
[1761289097205,2.69024547,3985.9,3985.1,0.72118]
[1761289097392,2.69024547,3985.9,3985.1,1.15098]
[1761289097393,3.05089635,3985.9,3985.1,1.15098]
[1761289097595,2.50885719,3985.9,3985.2,0.4298]
[1761289098410,2.50885719,3985.9,3985.5,0.5]
[1761289098718,2.50885719,3985.9,3985.6,3.204]
[1761289099216,2.50877451,3986.1,3985.6,3.204]
[1761289099417,0.1818,3986.7,3985.7,0.50688]
[1761289099617,2.50851176,3986.5,3985.7,0.50688]
[1761289099818,2.69020718,3986.6,3985.7,0.50688]
[1761289100123,2.5085789,3986.4,3985.7,0.50688]
[1761289100624,2.5085789,3986.4,3985.7,0.93668]
[1761289100786,2.50862753,3986.3,3985.7,0.93668]
[1761289101192,2.50865872,3986.2,3985.7,0.93668]
[1761289101395,0.1256,3985.8,3985.7,0.93668]
[1761289102620,0.1256,3985.8,3985.7,0.50688]
[1761289102796,0.1256,3985.8,3985.7,3.203]
[1761289104519,0.1256,3985.8,3985.7,3.202]
[1761289104825,0.3077,3985.8,3985.7,3.202]
[1761289105026,2.6345645,3985.8,3985.7,3.202]
[1761289108765,2.50903251,3985.6,3985.5,0.5]
[1761289108908,2.50903251,3985.6,3985.5,3.2]
[1761289109109,2.81753251,3985.6,3985.5,3.2]
[1761289110708,2.81753251,3985.6,3985.4,0.002]
[1761289110709,2.50909547,3985.5,3985.4,0.002]
[1761289111013,2.69199547,3985.5,3985.4,3.201]
[1761289111213,3.27609178,3985.5,3985.4,3.201]
[1761289111450,3.09319178,3985.5,3985.4,3.201]
[1761289111948,3.09319178,3985.5,3985.4,0.002]
[1761289112110,3.09319178,3985.5,3985.4,3.201]
[1761289112958,2.50909547,3985.5,3985.4,3.201]
[1761289114659,2.69199547,3985.5,3985.4,3.201]
[1761289115226,2.50909547,3985.5,3985.4,3.201]
[1761289118859,0.1256,3985.5,3985.4,3.201]
[1761289121428,1.7385,3986.8,3985.5,0.50688]
[1761289121657,0.2249,3987.0,3985.8,2.89966916]
[1761289121658,2.50851975,3986.5,3985.8,2.89966916]
[1761289121968,2.50853964,3986.4,3985.9,3.199]
[1761289122153,2.50859468,3986.3,3985.9,3.199]
[1761289122460,0.1256,3986.0,3985.9,3.199]
[1761289122656,0.1256,3986.0,3985.4,0.002]
[1761289122858,0.1256,3985.7,3985.5,3.199]
[1761289123060,2.50884485,3985.9,3985.5,3.199]
[1761289123275,0.1256,3985.6,3985.5,3.6718]
[1761289123574,0.1256,3985.6,3985.5,3.199]
[1761289128032,2.63463251,3985.6,3985.5,3.199]
[1761289128435,0.64005474,3985.6,3985.4,0.002]
[1761289128739,0.1256,3985.6,3985.5,3.196]
[1761289128961,2.63463251,3985.6,3985.5,3.196]
[1761289129948,2.80433251,3985.6,3985.5,3.196]
[1761289130336,2.63463251,3985.6,3985.5,3.196]
[1761289130536,2.63463251,3985.6,3985.4,0.002]
[1761289130537,2.50909547,3985.5,3985.4,0.002]
[1761289130764,3.02346827,3985.5,3985.4,0.002]
[1761289131032,3.02346827,3985.5,3985.4,3.197]
[1761289135873,3.02346827,3985.5,3985.4,0.002]
[1761289136046,3.19316827,3985.5,3985.4,3.196]
[1761289136468,3.02346827,3985.5,3985.4,3.196]
[1761289138776,3.02346827,3985.5,3985.4,3.6688]
[1761289138777,0.1256,3985.5,3985.4,3.6688]
[1761289141281,0.1256,3985.5,3985.4,3.196]
[1761289141450,2.63469547,3985.5,3985.4,3.196]
[1761289141852,2.80769547,3985.5,3985.4,3.196]
[1761289142253,2.80869547,3985.5,3985.4,3.196]
[1761289142472,3.34046218,3985.5,3985.4,3.196]
[1761289142676,3.16746218,3985.5,3985.4,3.196]
[1761289145461,3.16746218,3985.5,3985.4,0.002]
[1761289146245,3.34046218,3985.5,3985.4,0.002]
[1761289146680,3.34046218,3985.5,3985.4,3.19]
[1761289146978,3.16746218,3985.5,3985.4,3.19]
[1761289148675,3.34046218,3985.5,3985.4,3.19]
[1761289148873,3.16746218,3985.5,3985.4,3.19]
[1761289151563,3.16746218,3985.5,3985.4,0.002]
[1761289151892,3.34046218,3985.5,3985.4,3.187]
[1761289152095,3.16746218,3985.5,3985.4,3.187]
[1761289155583,0.1266,3985.5,3985.4,3.187]
[1761289155783,0.1266,3985.5,3985.4,3.6505]
[1761289158467,2.63569547,3985.5,3985.4,3.187]
[1761289160780,2.80869547,3985.5,3985.4,3.184]
[1761289161390,2.63569547,3985.5,3985.4,3.184]
[1761289161587,3.16746218,3985.5,3985.4,0.002]
[1761289161786,3.34046218,3985.5,3985.4,0.002]
[1761289162088,3.34046218,3985.5,3985.4,3.183]
[1761289163572,3.34046218,3985.5,3985.4,0.002]
[1761289163772,3.34046218,3985.5,3985.4,3.183]
[1761289166792,3.16746218,3985.5,3985.4,3.183]
[1761289167408,2.63569547,3985.5,3985.4,3.183]
[1761289170414,2.80869547,3985.5,3985.4,3.183]
[1761289172289,2.80869547,3985.5,3985.4,3.181]
[1761289172681,2.80869547,3985.5,3985.4,3.18]
[1761289174176,2.63569547,3985.5,3985.4,3.18]
[1761289174380,3.15016218,3985.5,3985.4,3.18]
[1761289174815,3.32316218,3985.5,3985.4,3.18]
[1761289175480,3.15016218,3985.5,3985.4,3.18]
[1761289175683,3.32316218,3985.5,3985.4,3.18]
[1761289175882,3.15016218,3985.5,3985.4,3.18]
[1761289177880,3.32316218,3985.5,3985.4,3.18]
[1761289178123,3.15016218,3985.5,3985.4,3.18]
[1761289178416,3.32316218,3985.5,3985.4,3.18]
[1761289180116,3.15016218,3985.5,3985.4,3.18]
[1761289181915,3.32316218,3985.5,3985.4,3.18]
[1761289184118,3.32316218,3985.5,3985.4,3.177]
[1761289184684,3.32316218,3985.5,3985.4,3.176]
[1761289184891,8.90035223,3985.5,3985.4,0.002]
[1761289185200,8.90035223,3985.5,3984.6,0.002]
[1761289185201,4.06479921,3984.7,3984.6,0.002]
[1761289185395,7.6712452,3984.7,3984.6,0.002]
[1761289185596,8.53574777,3984.7,3984.6,0.002]
[1761289185997,8.70504777,3984.7,3984.6,0.002]
[1761289186894,8.70469121,3984.7,3984.6,0.002]
[1761289187107,10.30156782,3984.7,3984.6,0.002]
[1761289187308,9.76122181,3984.7,3984.6,0.002]
[1761289187918,10.30157884,3984.7,3984.6,0.002]
[1761289188422,2.51060731,3983.1,3983.0,0.048]
[1761289188722,2.63620731,3983.1,3983.0,0.048]
[1761289190822,2.85390731,3983.1,3983.0,0.048]
[1761289191119,3.39035015,3983.1,3983.0,0.048]
[1761289191706,2.51118592,3982.2,3982.0,0.4365]
[1761289191912,2.51091746,3982.7,3982.5,0.2337]
[1761289192210,2.51092251,3982.6,3982.5,0.2337]
[1761289192418,2.51098756,3982.5,3982.3,0.4365]
[1761289192721,2.5108603,3982.7,3982.3,0.64825]
[1761289192895,0.1256,3982.4,3982.3,0.64825]
[1761289193091,2.63664861,3982.4,3982.3,0.4365]
[1761289193521,2.51111166,3982.3,3982.2,0.2337]
[1761289193723,2.51111166,3982.3,3982.2,0.6702]
[1761289195130,2.51111166,3982.3,3982.1,1.681]
[1761289195131,2.51117472,3982.2,3982.1,1.681]
[1761289195352,2.63677472,3982.2,3982.1,1.681]
[1761289197636,2.63677472,3982.2,3982.1,2.1175]
[1761289198018,2.63677472,3982.2,3982.1,2.3512]
[1761289198917,2.63677472,3982.2,3982.1,1.681]
[1761289199920,2.63677472,3982.2,3982.1,2.1521]
[1761289200251,0.1256,3982.2,3982.1,1.681]
[1761289200454,2.63677472,3982.2,3982.1,2.3892]
[1761289200947,0.1256,3982.2,3982.1,2.3892]
[1761289202852,0.1256,3982.2,3982.1,5.40731778]
[1761289203161,0.1256,3982.5,3982.2,0.50688]
[1761289203449,0.1256,3982.5,3982.4,0.50688]
[1761289203947,0.1256,3982.5,3982.4,0.4711]
[1761289205731,0.1256,3982.5,3982.4,0.97798]
[1761289207116,0.1256,3982.5,3982.4,4.45882599]
[1761289207635,0.1256,3982.5,3982.4,0.97798]
[1761289209048,1.7161,3983.7,3982.5,0.50688]
[1761289209231,0.1256,3982.7,3982.6,3.68588]
[1761289209818,0.1256,3982.7,3982.6,4.15698]
[1761289212292,0.1256,3983.2,3982.7,0.50688]
[1761289212444,0.1256,3983.2,3982.9,0.50688]
[1761289212639,0.1256,3983.2,3982.8,2.51079587]
[1761289212640,0.1256,3983.2,3983.1,0.74398]
[1761289213052,0.1256,3983.2,3983.1,1.21508]
[1761289213770,0.1256,3983.2,3983.0,3.18]
[1761289213974,2.51060731,3983.1,3983.0,3.18]
[1761289214373,2.63614596,3983.2,3983.0,3.6511]
[1761289214875,0.1256,3983.2,3983.0,3.6511]
[1761289215264,2.6361475,3983.2,3983.0,3.6511]
[1761289216061,0.1256,3983.2,3983.0,3.6511]
[1761289216261,2.63614433,3983.2,3983.0,3.6511]
[1761289216985,0.1256,3983.2,3982.4,0.002]
[1761289217284,0.1627,3983.5,3982.5,3.6501]
[1761289217453,2.51085631,3982.8,3982.5,3.6501]
[1761289217650,2.51086138,3982.7,3982.5,3.6501]
[1761289217847,2.51086138,3982.7,3982.6,0.4711]
[1761289218757,0.2252,3983.2,3982.6,0.4711]
[1761289218961,2.51072064,3983.0,3982.6,0.4711]
[1761289219159,2.51075715,3982.9,3982.6,0.4711]
[1761289221287,2.51092251,3982.6,3982.5,3.179]
[1761289221449,2.51098556,3982.5,3982.4,0.002]
[1761289221648,2.51098556,3982.5,3982.4,3.179]
[1761289223056,2.67368556,3982.5,3982.4,3.18]
[1761289223457,3.19214637,3982.5,3982.4,3.18]
[1761289223986,2.67368556,3982.5,3982.4,3.18]
[1761289224190,2.67368556,3982.5,3982.4,3.179]
[1761289224548,2.67368556,3982.5,3982.4,0.002]
[1761289224549,6.15453155,3982.5,3982.4,0.002]
[1761289224743,6.15453155,3982.5,3982.4,0.421]
[1761289224995,3.54023097,3982.5,3982.4,0.421]
[1761289225176,3.64071669,3982.5,3982.4,0.421]
[1761289226112,2.61147128,3982.5,3982.4,0.421]
[1761289226398,2.51098556,3982.5,3982.4,0.421]
[1761289226765,2.67368556,3982.5,3982.4,0.421]
[1761289227214,2.79928556,3982.5,3982.4,0.421]
[1761289229908,2.63658556,3982.5,3982.4,0.421]
[1761289230092,3.3561341,3982.5,3982.4,0.421]
[1761289230776,3.1934341,3982.5,3982.4,0.421]
[1761289231215,2.63658556,3982.5,3982.4,0.421]
[1761289233569,2.58658556,3982.5,3982.4,0.421]
[1761289235614,2.58658556,3982.5,3982.4,0.8595]
[1761289236699,0.1256,3982.5,3982.4,0.8595]
[1761289237991,0.1256,3982.5,3982.4,1.36638]
[1761289238176,0.1256,3982.5,3982.4,1.377998]
[1761289238376,0.1256,3982.5,3982.4,0.92788]
[1761289238902,0.1256,3982.5,3982.4,0.421]
[1761289239103,2.63658556,3982.5,3982.4,0.421]
[1761289239409,2.79928556,3982.5,3982.4,0.421]
[1761289239901,2.79928556,3982.5,3982.4,3.18]
[1761289241293,3.62072041,3982.5,3982.4,3.18]
[1761289243113,4.37435575,3982.5,3982.4,3.18]
[1761289244193,5.92955575,3982.5,3982.4,3.18]
[1761289244893,5.92955575,3982.5,3982.4,0.002]
[1761289247221,5.93055575,3982.5,3982.4,0.002]
[1761289254149,6.47146355,3982.5,3982.4,0.002]
[1761289255225,6.34586355,3982.5,3982.4,0.002]
[1761289256466,2.51149006,3981.7,3981.6,0.002]
[1761289256669,7.42349008,3981.7,3981.6,0.002]
[1761289257256,8.17733752,3981.7,3981.6,0.002]
[1761289261461,6.62213752,3981.7,3981.6,0.002]
[1761289261665,8.17733752,3981.7,3981.6,0.002]
[1761289261841,9.57477207,3981.7,3981.6,0.002]
[1761289262424,12.47897209,3981.7,3981.6,0.002]
[1761289262651,12.47897209,3981.7,3980.6,0.002]
[1761289262652,2.51212098,3980.7,3980.6,0.002]
[1761289262858,9.87572102,3980.7,3980.6,0.002]
[1761289263082,7.93763819,3980.7,3980.6,0.002]
[1761289263230,8.45451852,3980.7,3980.6,0.002]
[1761289263429,8.55506916,3980.7,3980.6,0.002]
[1761289265361,8.68066916,3980.7,3980.6,0.002]
[1761289265961,5.77646914,3980.7,3980.6,0.002]
[1761289266162,8.68066916,3980.7,3980.6,0.002]
[1761289266367,11.58486918,3980.7,3980.6,0.002]
[1761289266930,8.68066916,3980.7,3980.6,0.002]
[1761289269467,11.58486918,3980.7,3980.6,0.002]
[1761289269774,8.68066916,3980.7,3980.6,0.002]
[1761289269959,11.58486918,3980.7,3980.6,0.002]
[1761289271664,11.48431854,3980.7,3980.6,0.002]
[1761289272842,8.58011852,3980.7,3980.6,0.002]
[1761289273038,8.15391852,3980.7,3980.6,0.002]
[1761289273277,8.57701852,3980.7,3980.6,0.002]
[1761289273573,11.48121854,3980.7,3980.6,0.002]
[1761289274351,8.57701852,3980.7,3980.6,0.002]
[1761289274654,11.48121854,3980.7,3980.6,0.002]
[1761289274857,8.57701852,3980.7,3980.6,0.002]
[1761289275772,11.75601852,3980.7,3980.6,0.002]
[1761289281686,14.66021854,3980.7,3980.6,0.002]
[1761289281848,2.51237343,3980.3,3980.2,1e-08]
[1761289282055,7.09737345,3980.3,3980.2,1e-08]
[1761289282275,7.52047345,3980.3,3980.2,1e-08]
[1761289283752,2.51262594,3979.9,3979.8,1e-08]
[1761289283952,7.09762596,3979.9,3979.8,1e-08]
[1761289284197,8.524053,3979.9,3979.8,1e-08]
[1761289284886,8.100953,3979.9,3979.8,1e-08]
[1761289285184,8.524053,3979.9,3979.8,1e-08]
[1761289285383,8.696253,3979.9,3979.8,1e-08]
[1761289285801,8.100953,3979.9,3979.8,1e-08]
[1761289285965,5.19675298,3979.9,3979.8,0.43720001]
[1761289286170,8.100953,3979.9,3979.8,0.43720001]
[1761289287302,8.100953,3979.9,3979.8,1e-08]
[1761289289876,8.100953,3979.9,3979.8,0.47370001]
[1761289290489,4.19342594,3979.9,3979.8,0.47370001]
[1761289297991,4.19342594,3979.9,3979.8,1e-08]
[1761289298202,4.19342594,3979.9,3979.8,0.47370001]
[1761289300882,2.63822594,3979.9,3979.8,0.47370001]
[1761289301308,2.63822594,3979.9,3979.8,1e-08]
[1761289301309,2.51262594,3979.9,3979.8,1e-08]
[1761289301514,2.51362594,3979.9,3979.8,1e-08]
[1761289304600,2.51362594,3979.9,3979.8,0.47370001]
[1761289306242,2.51362594,3979.9,3979.8,1e-08]
[1761289306789,3.365243,3979.9,3979.8,1e-08]
[1761289309592,3.800743,3979.9,3979.8,1e-08]
[1761289309926,5.89781659,3979.9,3979.8,1e-08]
[1761289310312,5.46231659,3979.9,3979.8,1e-08]
[1761289311105,5.46231659,3979.9,3979.8,0.47370001]
[1761289311307,5.58791659,3979.9,3979.8,0.47370001]
[1761289311845,4.73629953,3979.9,3979.8,0.47370001]
[1761289312026,4.19442594,3979.9,3979.8,0.47370001]
[1761289314594,4.19442594,3979.9,3979.8,1e-08]
[1761289314798,4.19442594,3979.9,3979.8,0.47370001]
[1761289320940,2.63922594,3979.9,3979.8,0.47370001]
[1761289324457,0.1266,3979.9,3979.8,0.47370001]
[1761289324656,0.1266,3979.9,3979.8,1.1595769]
[1761289324854,0.1266,3979.9,3979.8,3.67226597]
[1761289325055,0.001,3979.9,3979.8,3.67226597]
[1761289328748,0.001,3979.9,3979.8,5.22746597]
[1761289328943,0.001,3979.9,3979.8,5.20233908]
[1761289335278,0.001,3979.9,3979.8,9.32213914]
[1761289335583,0.001,3979.9,3979.8,9.07233908]
[1761289336645,0.001,3979.9,3979.8,12.56236958]
[1761289338587,0.001,3979.9,3979.8,17.61936958]
[1761289339179,0.001,3979.9,3979.8,13.74936958]
[1761289343177,0.001,3979.9,3979.8,13.87496958]
[1761289347404,0.001,3979.9,3979.8,13.36808958]
[1761289347613,0.001,3979.9,3979.8,13.87496958]
[1761289348189,0.001,3979.9,3979.8,10.38493908]
[1761289348391,0.001,3979.9,3979.8,10.38393908]
[1761289350898,0.001,3979.9,3979.8,9.87705908]
[1761289352008,0.001,3979.9,3979.8,10.38393908]
[1761289353400,0.001,3979.9,3979.8,7.21093908]
[1761289353607,0.001,3979.9,3979.8,10.38393908]
[1761289356808,0.001,3979.9,3979.8,13.29030229]
[1761289359613,0.001,3979.9,3979.8,6.07936322]
[1761289359906,0.001,3979.9,3979.8,11.10263229]
[1761289366144,0.001,3979.9,3979.8,12.98563229]
[1761289368318,0.00099494,3980.3,3980.2,5.92567977]
[1761289368523,0.00099494,3980.3,3980.2,9.09867977]
[1761289368730,0.00099494,3980.3,3980.2,9.54717977]
[1761289369625,0.00099494,3980.3,3980.2,9.67277977]
[1761289370144,0.00099494,3980.3,3980.2,6.76641656]
[1761289370345,0.00099494,3980.3,3980.2,9.67277977]
[1761289375735,0.10099494,3980.3,3980.2,3.173]
[1761289375917,0.10099494,3980.3,3979.9,1.883]
[1761289376230,0.10099494,3980.3,3980.0,3.173]
[1761289376431,0.10099494,3980.3,3980.0,5.68555836]
[1761289376636,0.10099494,3980.3,3980.1,0.50688]
[1761289377341,0.10099494,3980.3,3980.2,3.67988]
[1761289377539,0.10099494,3980.3,3979.8,1e-08]
[1761289377848,0.2355,3979.9,3979.8,1e-08]
[1761289378048,0.2355,3979.9,3979.8,3.17300001]
[1761289378226,0.3369,3979.9,3979.8,3.17300001]
[1761289378441,0.3369,3979.9,3979.8,3.67988001]
[1761289379256,0.3369,3979.9,3979.8,3.7050069]
[1761289379418,0.3345,3980.2,3979.9,0.50688]
[1761289380247,0.3345,3980.2,3979.9,3.01950478]
[1761289380430,0.00099494,3980.3,3979.9,3.01950478]
[1761289380625,0.00099494,3980.3,3979.9,0.50688]
[1761289380868,0.11499494,3980.3,3979.9,0.50688]
[1761289381154,0.11499494,3980.3,3979.9,3.01950382]
[1761289381357,0.11499494,3980.3,3980.1,0.50688]
[1761289381649,0.11499494,3980.3,3980.2,3.67988]
[1761289381650,0.00099494,3980.3,3980.2,3.67988]
[1761289385451,0.11499494,3980.3,3980.2,3.67988]
[1761289385861,2.51244442,3980.2,3979.8,5.00000001]
[1761289386031,0.3345,3980.1,3979.9,3.173]
[1761289386458,0.1256,3980.0,3979.9,3.173]
[1761289386764,0.1256,3980.0,3979.9,3.67988]
[1761289386984,0.4601,3980.0,3979.9,3.67988]
[1761289387637,1.21401564,3980.0,3979.9,3.67988]
[1761289390251,0.87951564,3980.0,3979.9,3.67988]
[1761289390635,0.87951564,3980.0,3979.9,3.68188]
[1761289390842,1.21401564,3980.0,3979.9,3.68188]
[1761289391686,1.21401564,3980.0,3979.9,6.19450594]
[1761289391687,0.87951564,3980.0,3979.9,6.19450594]
[1761289391844,0.00099494,3980.3,3980.2,3.01931656]
[1761289392049,0.00099494,3980.3,3980.2,9.12380413]
[1761289392248,0.00099494,3980.3,3980.2,9.54647977]
[1761289395785,0.00099494,3980.3,3980.2,11.10167977]
[1761289397159,0.00099494,3980.3,3980.2,14.00804298]
[1761289397355,0.00099494,3980.3,3980.2,14.25924298]
[1761289401782,0.00099494,3980.3,3980.2,14.13364298]
[1761289402382,0.00099494,3980.3,3980.2,11.22727977]
[1761289403387,0.00099494,3980.3,3980.2,14.13364298]
[1761289403923,0.00099494,3980.3,3980.2,10.77947977]
[1761289404090,0.00099494,3980.3,3980.2,11.22727977]
[1761289404808,0.00099494,3980.3,3980.2,15.09727977]
[1761289409206,0.00099494,3980.3,3980.2,18.00364298]
[1761289409407,0.00099494,3980.3,3980.2,18.1322517]
[1761289410426,0.001,3980.7,3980.6,3.01906409]
[1761289410632,0.001,3980.7,3980.6,9.12254914]
[1761289410930,0.001,3980.7,3980.6,9.6846273]
[1761289411517,0.001,3980.7,3980.6,11.2398273]
[1761289418430,0.001,3980.7,3980.6,8.0678273]
[1761289418735,0.001,3980.7,3980.6,11.81852664]
[1761289421641,0.001,3980.7,3980.6,11.35692664]
[1761289421934,0.001,3980.7,3980.6,13.23792664]
[1761289426511,0.001,3980.7,3980.6,13.69952664]
[1761289428808,0.001,3980.7,3980.6,13.23792664]
[1761289430153,0.001,3980.7,3980.6,17.10792664]
[1761289430635,0.001,3980.7,3980.6,17.56952664]
[1761289431851,0.001,3980.7,3980.6,17.82072664]
[1761289432414,0.001,3980.7,3980.6,14.53640457]
[1761289433151,0.001,3980.7,3980.6,17.17640457]
[1761289433330,0.001,3980.7,3980.6,14.53640457]
[1761289433947,0.001,3980.7,3980.6,14.28660451]
[1761289437170,0.001,3980.7,3980.6,18.15660451]
[1761289441277,0.001,3980.7,3980.6,17.82072664]
[1761289443344,0.001,3980.7,3980.6,20.46072664]
[1761289443550,0.001,3980.7,3980.6,17.82072664]
[1761289447106,0.001,3980.7,3980.6,17.35912664]
[1761289447550,0.001,3980.7,3980.6,17.82512664]
[1761289453263,0.001,3980.7,3980.6,20.46512664]
[1761289453468,0.001,3980.7,3980.6,17.82512664]
[1761289455115,0.001,3980.7,3980.6,17.35912664]
[1761289459624,0.001,3980.7,3980.6,13.48912664]
[1761289460327,0.1062,3980.7,3980.6,13.48912664]
[1761289461042,0.001,3980.7,3980.6,13.48912664]
[1761289464108,0.1084,3980.7,3980.6,13.48912664]
[1761289464332,0.001,3980.7,3980.6,13.48912664]
[1761289465010,0.001,3980.7,3980.6,17.35912664]
[1761289469844,0.001,3980.7,3980.6,13.48912664]
[1761289471944,0.001,3980.7,3980.6,13.93052664]
[1761289472450,0.001,3980.7,3980.6,13.48912664]
[1761289473063,0.001,3980.7,3980.6,17.35912664]
[1761289477671,0.321,3980.7,3980.6,17.35912664]
[1761289477966,0.001,3980.7,3980.6,17.35912664]
[1761289479961,0.001,3980.7,3980.6,14.18812664]
[1761289480281,0.321,3980.7,3980.6,17.35712664]
[1761289480832,0.321,3980.7,3980.6,16.77666203]
[1761289481242,0.001,3980.7,3980.6,16.77666203]
[1761289482682,0.001,3980.7,3980.6,10.00206409]
[1761289482857,0.1048,3980.7,3980.6,10.00206409]
[1761289486079,0.1048,3980.7,3980.6,4.69986409]
[1761289486284,0.1048,3980.7,3980.4,1.882]
[1761289486458,0.1048,3980.7,3980.5,3.169]
[1761289486956,0.40087893,3980.7,3980.4,1.882]
[1761289487155,0.40087893,3980.7,3980.5,3.169]
[1761289487156,0.1256,3980.6,3980.5,3.169]
[1761289487362,0.2294,3980.6,3980.5,3.169]
[1761289487587,0.8846,3980.6,3980.5,3.67588]
[1761289487959,3.396791,3980.6,3980.5,3.169]
[1761289489188,0.8846,3980.6,3980.5,3.67588]
[1761289493059,3.75839158,3980.6,3980.5,3.67588]
[1761289494189,3.75839158,3980.6,3980.5,3.169]
[1761289494387,2.51227774,3980.5,3980.3,0.002]
[1761289494590,2.61607774,3980.5,3980.4,3.67588]
[1761289494884,2.63787774,3980.5,3980.4,3.67588]
[1761289495188,3.96478404,3980.5,3980.4,3.67588]
[1761289495361,4.06858404,3980.5,3980.4,3.67588]
[1761289495884,0.98320767,3980.5,3980.4,3.67588]
[1761289500470,0.75380767,3980.5,3980.4,9.09278826]
[1761289500786,0.001,3980.7,3980.5,0.50688]
[1761289500990,0.001,3980.7,3980.6,0.02512184]
[1761289501186,0.001,3980.7,3980.6,0.53200184]
[1761289501575,0.001,3980.7,3980.6,3.04418593]
[1761289501777,0.001,3980.7,3980.6,6.04926203]
[1761289503073,0.107,3980.7,3980.6,6.70607794]
[1761289503574,0.001,3980.7,3980.6,8.58807794]
[1761289503985,0.001,3980.7,3980.6,11.10026203]
[1761289504385,0.1,3980.7,3980.6,11.10026203]
[1761289504876,0.1,3980.7,3980.6,6.04926203]
[1761289505198,0.1,3980.7,3980.6,11.10026203]
[1761289505401,0.1,3980.7,3980.6,8.58807794]
[1761289505572,0.1,3980.7,3980.6,2.38888]
[1761289505776,0.1,3980.7,3980.6,5.55788]
[1761289506994,0.1,3980.7,3980.6,8.46247794]
[1761289508707,0.1,3980.7,3980.6,5.55788]
[1761289509003,0.1,3980.7,3980.6,3.67488]
[1761289509004,2.61212098,3980.7,3980.6,3.67488]
[1761289509226,3.15942411,3980.7,3980.6,3.67488]
[1761289509374,3.15942411,3980.7,3980.6,3.168]
[1761289509574,0.64730313,3980.7,3980.6,3.168]
[1761289510078,0.1,3980.7,3980.6,3.67488]
[1761289510276,0.1,3980.7,3980.6,3.70000184]
[1761289510691,0.1,3980.7,3980.6,3.67488]